[Event "Romanian Team Blitz Open 2022"]
[Site "Sebes"]
[Date "2022.12.04"]
[Round "4.2"]
[White "Filip, Lucian-Ioan"]
[Black "Jianu, Vlad-Cristian"]
[Result "0-1"]
[ECO "D30"]
[WhiteElo "2370"]
[BlackElo "2516"]
[Annotator "TA"]
[PlyCount "59"]
[EventDate "2022.12.04"]
[EventType "blitz"]
[EventCountry "ROU"]
[SourceTitle "playchess.com"]
[Source "ChessBase"]
[SourceQuality "1"]
[TimeControl "180+2"]

{[%evp 9,59,22,28,0,31,15,23,0,5,15,20,0,0,0,0,13,8,0,0,-18,-24,-43,-68,-37,-6,-16,0,-18,-17,-65,-52,-41,-43,-124,0,0,0,0,0,-2,36,-33,0,0,0,0,0,0,0,0,0,0]} 1. Nf3 {[%emt 0:00:01]} d5 {[%emt 0:00:00]} 2. d4 {[%emt 0:00:01]} e6 {[%emt 0:00:02]} 3. c4 {[%emt 0:00:01]} a6 {[%emt 0:00:02]} 4. Bg5 {[%emt 0:00:09]} Be7 {[%emt 0:00:01]} 5. Bxe7 {[%emt 0:00:03]} Qxe7 {[%emt 0:00:01]} 6. Qb3 {[%emt 0:00:25] D30: Queen's Gambit Declined: Systems without Nc3.} Nf6 {[%emt 0:00:10]} 7. e3 {[%emt 0:00:22] [#]} O-O $146 {[%emt 0:00:07]} ({Predecessor:} 7... Nbd7 8. Nbd2 c6 9. Bd3 O-O 10. Qc2 h6 11. O-O e5 12. e4 dxe4 13. Nxe4 Nxe4 14. Bxe4 exd4 15. Nxd4 {½-½ (50) Koykka,P (2303)-Kiik,K (2374) Jyvaskyla 2015}) 8. Nbd2 {[%emt 0:00:12] White has an edge.} dxc4 {[%emt 0:00:37]} 9. Nxc4 {[%emt 0:00:21]} b5 {[%emt 0:00:24]} 10. Na5 {[%emt 0:00:16]} c5 {[%emt 0:00:01]} 11. dxc5 {[%emt 0:00:02]} Qxc5 {[%emt 0:00:11]} 12. Be2 {[%emt 0:00:22]} Qb6 {[%emt 0:00:26]} 13. Nc4 {[%emt 0:00:02]} Qc7 {[%emt 0:00:08]} 14. Nce5 {[%emt 0:00:08]} Qa5+ {[%emt 0:00:10]} 15. Qc3 {[%emt 0:00:12]} (15. Nd2 {is interesting.} Rd8 16. Rd1 Bb7 17. O-O) 15... Qxc3+ {[%emt 0:00:06]} 16. bxc3 {[%emt 0:00:01]} Bb7 {[%emt 0:00:01]} 17. a4 {[%emt 0:00:16]} Nc6 {[%emt 0:00:20]} 18. O-O {[%emt 0:00:24]} Ne4 {[%emt 0:00:10]} 19. Rfc1 {[%emt 0:00:11]} (19. Nxc6 $11 Bxc6 20. Rfc1) 19... Nxe5 $15 20. Nxe5 {[%emt 0:00:01]} Nc5 {[%emt 0:00:27] [#] ...Nb3 is the strong threat.} 21. Rcb1 {[%emt 0:00:08] Inhibits Nb3.} ({White should play} 21. Bd1 $15) 21... bxa4 {[%emt 0:00:12]} (21... f6 $17 22. Nf3 Nxa4) 22. Nd3 $11 {[%emt 0:00:08]} Nxd3 {[%emt 0:00:10]} 23. Bxd3 {[%emt 0:00:02]} Bc6 {[%emt 0:00:02]} 24. Rb6 {[%emt 0:00:02]} Rfd8 {[%emt 0:00:02]} 25. Be2 {[%emt 0:00:02]} (25. Bxh7+ $14 Kxh7 26. Rxc6) 25... Rd2 {[%emt 0:00:02]} 26. Bf3 {[%emt 0:00:02] The position is equal.} Bxf3 {[%emt 0:00:02]} 27. gxf3 Rc2 {[%emt 0:00:02]} 28. Rxa4 {[%emt 0:00:04]} Rxc3 {[%emt 0:00:02]} 29. Rbxa6 Rxa6 {[%emt 0:00:02]} 30. Rxa6 {[%emt 0:00:04][%mdl 32768] Weighted Error Value: White=0.21 (precise) /Black=0.14 (very precise) . Loss on time!?} 0-1

[Event "Romanian Team Blitz Open 2022"]
[Site "Sebes"]
[Date "2022.12.04"]
[Round "4.3"]
[White "Parligras, Mircea-Emilian"]
[Black "Secheres, Adrian-Simion"]
[Result "0-1"]
[ECO "E71"]
[WhiteElo "2567"]
[BlackElo "2365"]
[Annotator "TA"]
[PlyCount "106"]
[EventDate "2022.12.04"]
[EventType "blitz"]
[EventCountry "ROU"]
[SourceTitle "playchess.com"]
[Source "ChessBase"]
[SourceQuality "1"]
[TimeControl "180+2"]

{[%evp 13,106,41,49,31,38,44,50,39,62,44,59,50,83,90,83,8,13,2,114,103,92,112,92,82,141,73,232,233,242,226,408,373,353,-200,-191,-643,-591,-818,-539,-504,-227,-173,-155,-143,-102,-180,-106,-102,-6,0,-6,-3,0,-96,-98,-126,-141,-170,-97,-98,-83,-93,-87,-254,-231,-29956,-29961,-29970,-29971,-29956,-29953,-4498,-29959,-29959,-29960,-29956,-29955,-29960,-29959,-29979,-29980,-29984,-29968,-29969,-29969,-29969,-29971,-29971,-29972,-29972,-29972,-29972,-29971,-29958,-4627]} 1. d4 {[%emt 0:00:02]} Nf6 {[%emt 0:00:01]} 2. c4 {[%emt 0:00:01]} g6 {[%emt 0:00:01]} 3. Nc3 {[%emt 0:00:01]} Bg7 {[%emt 0:00:01]} 4. e4 {[%emt 0:00:01]} d6 {[%emt 0:00:01]} 5. h3 {[%emt 0:00:01]} O-O {[%emt 0:00:02]} 6. Be3 {[%emt 0:00:01]} e5 {[%emt 0:00:07]} 7. d5 {[%emt 0:00:01]} Na6 {[%emt 0:00:05]} 8. g4 {[%emt 0:00:01] E71: King's Indian: 4 e4 d6 5 h3.} Nc5 {[%emt 0:00:03]} 9. f3 {[%emt 0:00:01]} a5 {[%emt 0:00:02]} 10. Qd2 {[%emt 0:00:02] White is slightly better.} c6 {[%emt 0:00:02]} 11. Nge2 {[%emt 0:00:01]} a4 {[%emt 0:00:02]} 12. Ng3 {[%emt 0:00:03]} cxd5 {[%emt 0:00:02]} 13. cxd5 {[%emt 0:00:02]} h5 {[%emt 0:00:02] [#]} 14. h4 $146 {[%emt 0:00:07]} ({Better is} 14. Nb5 $16) ({Predecessor:} 14. Rg1 h4 15. Nge2 Qa5 16. Nc1 Bd7 17. Nd3 b6 18. Nxc5 bxc5 19. Bc4 Rfb8 20. Kf2 {0-1 (51) Bharath,S (2479)-Demchenko,A (2654) Chess.com INT 2022}) 14... hxg4 $11 {[%emt 0:00:07]} 15. h5 {[%emt 0:00:01]} Re8 {[%emt 0:00:01]} (15... gxf3 $2 16. h6 Nfxe4 17. Ngxe4 (17. Ncxe4 Nxe4 18. Nxe4 Bf6 $18) 17... Nxe4 18. Nxe4 $18) (15... Nh7 $11) 16. hxg6 $16 {[%emt 0:00:02]} fxg6 {[%emt 0:00:01]} 17. Bxc5 {[%emt 0:00:02]} dxc5 {[%emt 0:00:02]} 18. Bc4 {[%emt 0:00:02] Qg5 is the strong threat.} Qa5 {[%emt 0:00:22]} (18... gxf3 $142 19. Qg5 f2+ 20. Kd2 Qd7) 19. O-O-O {[%emt 0:00:06]} ({White should try} 19. a3 $1 b5 20. Bxb5) 19... Qb4 $2 {[%emt 0:00:09]} (19... a3 $16) 20. Qd3 $1 $18 {[%emt 0:00:02]} a3 {[%emt 0:00:35][%csl Ga3][%cal Rb4b2]} (20... gxf3 21. a3 Qb6 22. d6+ (22. Qxf3 Bg4 $18) 22... Be6 23. Nb5) 21. b3 {[%emt 0:00:02]} gxf3 $2 {[%emt 0:00:07]} (21... Bd7 {was necessary.} 22. fxg4 Rab8) 22. d6+ {[%emt 0:00:16]} Be6 {[%emt 0:00:24] Hoping for ...Bxc4.} 23. Nd5 $4 {[%emt 0:00:36][%mdl 8192]} (23. d7 $18 {was the only winning move.}) 23... Nxd5 $1 $19 {[%emt 0:00:05]} 24. exd5 {[%emt 0:00:20]} (24. d7 Nf4 25. dxe8=Q+ Rxe8 26. Bxe6+ Nxe6 27. Qxf3) 24... e4 {[%emt 0:00:06]} (24... Bg4 25. d7 Bxd7 26. d6+ Re6 27. Rh4 $18 (27. Qxf3 Rf8 $16)) 25. Qd2 {[%emt 0:00:50]} Qxd2+ {[%emt 0:00:06]} 26. Kxd2 {[%emt 0:00:03]} Bf7 {[%emt 0:00:16]} (26... Bd7 $142 27. Rde1 b5) 27. Rde1 {[%emt 0:00:12] Against b5} e3+ {[%emt 0:00:25]} 28. Rxe3 {[%emt 0:00:03]} f2 {[%emt 0:00:22]} 29. Rf3 {[%emt 0:00:08]} (29. Re6 $17 {is a better defense.}) 29... Bd4 {[%emt 0:00:04] This pair of bishops is nice.} ({Black should play} 29... b5 $1 $19 {[%cal Rb5c4]} 30. Bxb5 Bxd5 31. Rxf2 Reb8) 30. Ne2 $17 {[%emt 0:00:11] Threatens to win with Nxd4.} Rad8 {[%emt 0:00:03]} (30... Re4 $17 {White must now prevent ...Rd8.} 31. Nf4 Rd8) 31. Nxd4 $11 {[%emt 0:00:03][%mdl 64] Remove Defender} cxd4 {[%emt 0:00:01]} 32. Rxf2 {[%emt 0:00:02] aiming for Rhf1.} Rxd6 {[%emt 0:00:01]} 33. Rhf1 {[%emt 0:00:02]} (33. Rfh2 $11) 33... Bxd5 $17 {[%emt 0:00:02] Black is more active.} 34. Bxd5+ {[%emt 0:00:16]} Rxd5 {[%emt 0:00:02][%mdl 4096] Endgame KRR-KRR} 35. Rf6 {[%emt 0:00:04]} Kg7 {[%emt 0:00:08]} (35... Rg5 $19 36. R1f2 Rg1) 36. Rf7+ {[%emt 0:00:02] [#]} Kh6 $1 {[%emt 0:00:03]} 37. Rxb7 {[%emt 0:00:03] [#]} d3 $1 {[%emt 0:00:02][%cal Bd4d3,Bd3d2][%mdl 32] And now ...Re2+ would win.} 38. Rf2 {[%emt 0:00:02] Against Re2+} (38. Rh1+ $17 Rh5 39. Rg1) 38... Rc8 $19 {[%emt 0:00:02] ( -> ...Rc2+)} 39. Rbf7 $2 {[%emt 0:00:10]} (39. Kd1 $19) 39... Rc2+ {[%emt 0:00:02]} 40. Kd1 {[%emt 0:00:01]} Rb2 {[%emt 0:00:02]} 41. Rf1 {[%emt 0:00:11]} d2 {[%emt 0:00:04]} 42. Rh1+ {[%emt 0:00:01]} Rh5 {[%emt 0:00:03]} 43. Rxh5+ {[%emt 0:00:02] Black mates.} Kxh5 {[%emt 0:00:02] KR-KR} 44. b4 {[%emt 0:00:05]} Rxa2 {[%emt 0:00:02]} 45. Ra7 {[%emt 0:00:01]} g5 {[%emt 0:00:03][%cal Bg6g5,Bg5g4][%mdl 32]} 46. b5 {[%emt 0:00:01]} g4 {[%emt 0:00:00]} 47. b6 {[%emt 0:00:01]} Rb2 {[%emt 0:00:02]} 48. Rxa3 {[%emt 0:00:03]} Rxb6 {[%emt 0:00:02]} 49. Kxd2 {[%emt 0:00:01]} Re6 {[%emt 0:00:01]} 50. Ra8 {[%emt 0:00:04]} Kh4 {[%emt 0:00:01]} 51. Rh8+ {[%emt 0:00:02]} Kg3 {[%emt 0:00:01]} 52. Rg8 {[%emt 0:00:01]} Kh3 {[%emt 0:00:00]} 53. Rh8+ {[%emt 0:00:01]} Kg2 {[%emt 0:00:01] What a bad dream for White.   Weighted Error Value: White=0.55/Black=0.44} 0-1

[Event "Romanian Team Blitz Open 2022"]
[Site "Sebes"]
[Date "2022.12.04"]
[Round "4.4"]
[White "Nastore, Pavel-Alexandru"]
[Black "Gavrilescu, David"]
[Result "0-1"]
[ECO "E05"]
[WhiteElo "2218"]
[BlackElo "2523"]
[Annotator "TA"]
[PlyCount "95"]
[EventDate "2022.12.04"]
[EventType "blitz"]
[EventCountry "ROU"]
[SourceTitle "playchess.com"]
[Source "ChessBase"]
[SourceQuality "1"]
[TimeControl "180+2"]

{[%evp 24,95,12,9,20,9,9,16,35,8,16,14,67,12,12,0,36,32,38,33,33,1,16,0,0,0,0,0,0,0,12,4,7,0,6,0,6,0,2,0,0,0,0,0,0,0,0,0,0,0,0,0,0,0,0,-61,-61,-62,-62,-60,-54,-54,-54,-61,-61,-137,-125,-301,-177,-187,0,-833,-771,-640]} 1. d4 {[%emt 0:00:01]} d5 {[%emt 0:00:01]} 2. Nf3 {[%emt 0:00:01]} Nf6 {[%emt 0:00:01]} 3. g3 {[%emt 0:00:01]} e6 {[%emt 0:00:00]} 4. Bg2 {[%emt 0:00:02]} Be7 {[%emt 0:00:01]} 5. O-O {[%emt 0:00:02]} O-O {[%emt 0:00:02]} 6. c4 {[%emt 0:00:01]} dxc4 {[%emt 0:00:01]} 7. Ne5 {[%emt 0:00:02]} Nc6 {[%emt 0:00:01]} 8. Bxc6 {[%emt 0:00:01]} bxc6 {[%emt 0:00:01]} 9. Nxc6 {[%emt 0:00:02]} Qe8 {[%emt 0:00:01]} 10. Nxe7+ {[%emt 0:00:02]} Qxe7 {[%emt 0:00:01]} 11. Qc2 {[%emt 0:00:24]} c5 {[%emt 0:00:05]} 12. Qxc4 {[%emt 0:00:39]} cxd4 {[%emt 0:00:01]} 13. Qxd4 {[%emt 0:00:02]} e5 {[%emt 0:00:01] E05: Open Catalan: 5 Nf3 Be7.} 14. Qh4 {[%emt 0:00:06]} h6 {[%emt 0:00:02] Against Bg5} 15. Nc3 {[%emt 0:00:10]} Bb7 {[%emt 0:00:30] Inhibits Ne4. The position is equal.} 16. Be3 {[%emt 0:00:06] 16.e4 is vanishing.} Qe6 {[%emt 0:00:04]} 17. f3 {[%emt 0:00:14]} e4 {[%emt 0:00:24]} (17... Rfc8 $11 18. Qb4 Nd5 19. Nxd5 (19. Qxb7 Nxe3 20. Rfc1 Qh3 $11) 19... Bxd5) 18. Bd4 {[%emt 0:00:33]} (18. f4 $1 $14) 18... exf3 $11 {[%emt 0:00:02]} 19. exf3 {[%emt 0:00:09]} Nd5 {[%emt 0:00:24]} (19... Nh7 $5 {[%cal Rh7g5]} 20. Rae1 Qc6 $14) 20. Rfe1 {[%emt 0:00:13] [#]} Qf5 $146 {[%emt 0:00:05] [#] Threatens to win with ...Nxc3.} ({Predecessor:} 20... Qc6 21. Qg4 g6 22. Kg2 Nxc3 23. Bxc3 f5 24. Qf4 g5 25. Qe3 Rfe8 26. Qf2 g4 {½-½ (56) Shapiro,D (2284)-Zaichenko,D (2104) Chess.com INT 2021}) 21. Qe4 {[%emt 0:00:02]} Qd7 {[%emt 0:00:18] White must now prevent ...Nxc3.} 22. Qe5 {[%emt 0:00:10][%csl Gd4][%cal Re5g7]} (22. Nxd5 {simplifies} Bxd5 23. Qg4 Qxg4 24. fxg4 Rfd8 25. h3) 22... f6 {[%emt 0:00:01]} 23. Qe6+ {[%emt 0:00:06]} Qxe6 {[%emt 0:00:01]} 24. Rxe6 {[%emt 0:00:01]} Nxc3 {[%emt 0:00:02]} 25. Bxc3 {[%emt 0:00:29]} Bxf3 {[%emt 0:00:02]} 26. Rae1 {[%emt 0:00:04]} Rad8 {[%emt 0:00:02]} 27. Kf2 {[%emt 0:00:07]} Bd5 {[%emt 0:00:02]} 28. Re7 {[%emt 0:00:00]} Rf7 {[%emt 0:00:06]} 29. a3 {[%emt 0:00:03]} h5 {[%emt 0:00:06]} 30. Bb4 {[%emt 0:00:02]} a6 {[%emt 0:00:07]} 31. Rxf7 {[%emt 0:00:03]} Kxf7 {[%emt 0:00:01][%mdl 4096] Endgame KRB-KRB} 32. Re7+ {[%emt 0:00:01]} Kg6 {[%emt 0:00:01]} 33. Bc3 {[%emt 0:00:03]} Rd6 {[%emt 0:00:04]} 34. Ke3 {[%emt 0:00:03]} Bc4 {[%emt 0:00:02]} 35. Kf4 {[%emt 0:00:04]} Rd1 {[%emt 0:00:02]} 36. Re4 {[%emt 0:00:02]} Rf1+ {[%emt 0:00:20]} 37. Ke3 {[%emt 0:00:01]} Bb5 {[%emt 0:00:04]} 38. a4 {[%emt 0:00:00]} Bd7 {[%emt 0:00:02]} 39. Re7 {[%emt 0:00:02]} (39. Rd4 $11 Bc6 40. Rd6 Bxa4 41. Rxa6) 39... Bxa4 $15 {[%emt 0:00:01]} 40. Ra7 {[%emt 0:00:01]} Bb5 {[%emt 0:00:01]} 41. Bb4 {[%emt 0:00:01]} Rh1 {[%emt 0:00:11]} 42. Bf8 {[%emt 0:00:01]} Rxh2 {[%emt 0:00:01]} 43. Rxg7+ {[%emt 0:00:02]} Kf5 {[%emt 0:00:01]} 44. Be7 {[%emt 0:00:05]} (44. b4 $15) 44... Rxb2 {[%emt 0:00:03] Black is more active.} 45. Rf7 $2 {[%emt 0:00:01] [#]} (45. Bd8 $17 {keeps fighting.}) 45... Ke6 {[%emt 0:00:02]} (45... Re2+ $142 46. Kd4 Kg6 47. Rxf6+ Kg7) 46. Rh7 {[%emt 0:00:01]} Kf5 $2 {[%emt 0:00:10]} ({Black should play} 46... Rg2 $19 {And now ...Bc6 would win.} 47. Bd8 Rxg3+ 48. Kf2 Rg8) 47. Rh6 $2 {[%emt 0:00:02][%mdl 8192]} (47. Rf7 $11) 47... Re2+ $19 {[%emt 0:00:02]} 48. Kd4 {[%emt 0:00:10] Weighted Error Value: White=0.32/Black=0.14 (very precise)} 0-1

[Event "Romanian Team Blitz Open 2022"]
[Site "Sebes"]
[Date "2022.12.04"]
[Round "4.5"]
[White "Costachi, Mihnea"]
[Black "Ardelean, George-Catalin"]
[Result "1/2-1/2"]
[ECO "D31"]
[WhiteElo "2476"]
[BlackElo "2473"]
[Annotator "TA"]
[PlyCount "63"]
[EventDate "2022.12.04"]
[EventType "blitz"]
[EventCountry "ROU"]
[SourceTitle "playchess.com"]
[Source "ChessBase"]
[SourceQuality "1"]
[TimeControl "180+2"]

{[%evp 9,63,0,27,16,24,3,6,8,17,15,14,0,0,6,0,0,0,0,52,-4,0,-8,0,0,0,0,0,-6,-17,-21,0,0,0,0,0,0,0,-9,-7,-6,-3,-4,-5,-5,0,0,0,0,-7,-12,-17,-14,0,-17,0,-18]} 1. d4 {[%emt 0:00:01]} d5 {[%emt 0:00:01]} 2. c4 {[%emt 0:00:01]} e6 {[%emt 0:00:01]} 3. Nc3 {[%emt 0:00:01]} a6 {[%emt 0:00:01]} 4. cxd5 {[%emt 0:00:04]} exd5 {[%emt 0:00:01]} 5. Qc2 {[%emt 0:00:11]} c6 {[%emt 0:00:31]} 6. Nf3 {[%emt 0:00:04] D31: Queen's Gambit Declined: Semi-Slav without ...Nf6 (+ Marshall Gambit and Noteboom) and Exchange Variation lines without ...Nf6.} Bd6 {[%emt 0:00:15]} 7. Bg5 {[%emt 0:00:02]} Ne7 {[%emt 0:00:03]} 8. e3 {[%emt 0:00:04]} f6 {[%emt 0:00:06]} 9. Bh4 {[%emt 0:00:02]} Bf5 {[%emt 0:00:01]} 10. Bd3 {[%emt 0:00:02]} Bxd3 {[%emt 0:00:02]} 11. Qxd3 {[%emt 0:00:01]} O-O {[%emt 0:00:11]} 12. Bg3 {[%emt 0:00:03] [#]} Nc8 $146 {[%emt 0:00:06]} ({Predecessor:} 12... b5 13. Rc1 a5 14. O-O Bxg3 15. hxg3 Nd7 16. Ne2 Nb6 17. Nf4 Qd6 18. g4 a4 {1-0 (62) Koneru,H (2553)-Ushenina,A (2442) Hengshui 2019}) 13. O-O {[%emt 0:00:05]} Re8 {[%emt 0:00:06]} (13... Bxg3 $11 14. fxg3 (14. hxg3 Nd6 $11) 14... Nd6) 14. Nh4 {[%emt 0:00:12]} (14. e4 $14) 14... Bxg3 $11 {[%emt 0:00:07] The position is equal.} 15. hxg3 {[%emt 0:00:01]} Nd6 {[%emt 0:00:06] Against e4} 16. Nf5 {[%emt 0:00:04]} Nxf5 {[%emt 0:00:08]} 17. Qxf5 {[%emt 0:00:02]} Nd7 {[%emt 0:00:01][%cal Bb8d7,Bd7f8,Bf8e6][%mdl 32]} 18. e4 {[%emt 0:00:09]} dxe4 {[%emt 0:00:32]} 19. Nxe4 {[%emt 0:00:02]} Nf8 {[%emt 0:00:11]} 20. Rad1 {[%emt 0:00:18]} Qe7 {[%emt 0:00:13]} 21. Nc3 {[%emt 0:00:12]} Rad8 {[%emt 0:00:17]} 22. a3 {[%emt 0:00:09]} Qe6 {[%emt 0:00:08]} 23. Qxe6+ {[%emt 0:00:09]} Nxe6 {[%emt 0:00:01]} 24. d5 {[%emt 0:00:03]} cxd5 {[%emt 0:00:03]} 25. Nxd5 {[%emt 0:00:08]} Kf7 {[%emt 0:00:01]} 26. Rfe1 {[%emt 0:00:33]} Rd6 {[%emt 0:00:01]} 27. Ne3 {[%emt 0:00:13]} Red8 {[%emt 0:00:05]} 28. Rxd6 {[%emt 0:00:06]} Rxd6 {[%emt 0:00:00]} 29. Re2 {[%emt 0:00:10]} Nd4 {[%emt 0:00:04]} 30. Re1 {[%emt 0:00:00]} Ne6 {[%emt 0:00:03]} 31. Re2 {[%emt 0:00:05]} Nd4 {[%emt 0:00:01]} 32. Re1 {[%emt 0:00:01] A rather calm draw.   Weighted Error Value: White=0.08 (flawless) /Black=0.07 (flawless)} 1/2-1/2

[Event "Romanian Team Blitz Open 2022"]
[Site "Sebes"]
[Date "2022.12.04"]
[Round "4.6"]
[White "Murariu, Andrei"]
[Black "Ileana, George"]
[Result "0-1"]
[ECO "B94"]
[WhiteElo "2493"]
[BlackElo "2343"]
[Annotator "TA"]
[PlyCount "75"]
[EventDate "2022.12.04"]
[EventType "blitz"]
[EventCountry "ROU"]
[SourceTitle "playchess.com"]
[Source "ChessBase"]
[SourceQuality "1"]
[TimeControl "180+2"]

{[%evp 14,75,18,0,36,0,28,1,47,43,41,-144,-130,-148,-114,-149,-143,-124,-112,-196,-168,-169,-164,-420,-414,-598,-614,-576,-557,-734,-619,-779,-763,-785,-767,-778,-666,-622,-412,-447,-442,-424,-423,-575,-581,-548,-514,-599,-584,-661,-482,-543,-544,-541,-529,-528,-523,-508,-502,-527,-472,-614,-585,-1640]} 1. e4 {[%emt 0:00:02]} c5 {[%emt 0:00:01]} 2. Nf3 {[%emt 0:00:02]} d6 {[%emt 0:00:00]} 3. d4 {[%emt 0:00:01]} cxd4 {[%emt 0:00:01]} 4. Nxd4 {[%emt 0:00:02]} Nf6 {[%emt 0:00:01]} 5. Nc3 {[%emt 0:00:02]} a6 {[%emt 0:00:01]} 6. Bg5 {[%emt 0:00:02]} Nbd7 {[%emt 0:00:02]} 7. f4 {[%emt 0:00:05]} h6 {[%emt 0:00:02]} 8. Bh4 {[%emt 0:00:11]} g6 {[%emt 0:00:01] B94: Sicilian Najdorf: 6 Bg5 Nbd7.} 9. Qf3 {[%emt 0:00:13]} Bg7 {[%emt 0:00:03]} 10. O-O-O {[%emt 0:00:05]} O-O {[%emt 0:00:02]} (10... e5 $11 {should be considered.} 11. fxe5 Nxe5) 11. g4 $14 {[%emt 0:00:26]} e5 {[%emt 0:00:20] [#]} 12. Nb3 $146 {[%emt 0:00:01]} (12. Nf5 $1 $14 {is the one way to stay ahead.} gxf5 13. gxf5) ({Predecessor:} 12. fxe5 Nxe5 13. Bxf6 Bxf6 14. Qg2 Bxg4 15. Be2 Bxe2 16. Ncxe2 Qb6 17. h4 Rac8 18. Nf4 {0-1 (55) Tang,A-Gao,Y Al Ain 2013}) 12... exf4 $17 {[%emt 0:00:04] ...g5 is the strong threat. White is now going downhill.} 13. g5 {[%emt 0:00:08]} Nh5 {[%emt 0:00:18] White must now prevent ...Ne5.} 14. gxh6 {[%emt 0:00:06]} (14. Rxd6 $2 {is the wrong capture.} hxg5 15. Bf2 Qe7 $19) 14... Qxh4 {[%emt 0:00:02]} 15. hxg7 {[%emt 0:00:02]} Kxg7 {[%emt 0:00:02] aiming for ...Ne5.} 16. Rxd6 {[%emt 0:00:14] [#]} (16. Qh3 $17 {was necessary.} Qg5 17. Qf3) 16... Ne5 $1 $19 {[%emt 0:00:03]} 17. Qd1 {[%emt 0:00:10] [#]} Bg4 $1 $36 {[%emt 0:00:11][%mdl 2048] Keeping White busy.} 18. Be2 {[%emt 0:00:18]} (18. Qd4 f6 19. Nd1) 18... f3 {[%emt 0:00:07]} 19. Bd3 {[%emt 0:00:30]} (19. Bc4 {was worth a try.} Rfd8 20. Rxd8 Rxd8 21. Bd5) 19... Rad8 {[%emt 0:00:09]} 20. Rxd8 {[%emt 0:00:06]} Rxd8 {[%emt 0:00:01]} 21. Nd5 {[%emt 0:00:28]} Nf6 {[%emt 0:00:19]} 22. Nxf6 {[%emt 0:00:06]} Qxf6 {[%emt 0:00:02]} 23. Qd2 {[%emt 0:00:08]} Bh3 {[%emt 0:00:24]} 24. Qe3 {[%emt 0:00:11]} Ng4 {[%emt 0:00:15]} 25. e5 {[%emt 0:00:07]} Nxe3 {[%emt 0:00:34]} ({And not} 25... Qxe5 26. Qxf3 Rh8 27. a3 $15) 26. exf6+ {[%emt 0:00:01]} Kxf6 {[%emt 0:00:01] Black is clearly winning.} 27. Nd2 {[%emt 0:00:01]} Bg2 {[%emt 0:00:10]} 28. Ne4+ {[%emt 0:00:01]} Kg7 {[%emt 0:00:06]} 29. Re1 {[%emt 0:00:02]} Ng4 {[%emt 0:00:04]} 30. Rg1 {[%emt 0:00:07]} Nxh2 {[%emt 0:00:06]} 31. Nf2 {[%emt 0:00:01]} Rd4 {[%emt 0:00:06]} 32. c3 {[%emt 0:00:03]} Rh4 {[%emt 0:00:02]} 33. Kd2 {[%emt 0:00:01]} Ng4 {[%emt 0:00:03]} 34. Nxg4 {[%emt 0:00:03]} Rxg4 {[%emt 0:00:00]} 35. Ke3 {[%emt 0:00:01]} Ra4 {[%emt 0:00:03]} 36. a3 {[%emt 0:00:01]} Ra5 {[%emt 0:00:02]} 37. c4 {[%emt 0:00:03]} f5 {[%emt 0:00:02]} 38. Bc2 {[%emt 0:00:07] Weighted Error Value: White=0.66/Black=0.33} 0-1